[Event "FIDE WTC Prel-B 2022"]
[Site "Jerusalem"]
[Date "2022.11.22"]
[Round "5.15"]
[White "Guseinov, Gadir"]
[Black "Boruchovsky, Avital"]
[Result "1-0"]
[ECO "C67"]
[WhiteElo "2661"]
[BlackElo "2552"]
[Annotator "TA"]
[PlyCount "87"]
[EventDate "2022.11.20"]
[EventType "team-tourn"]
[EventCountry "ISR"]
[SourceTitle "playchess.com"]
[Source "ChessBase"]
[SourceQuality "1"]
[WhiteTeam "Azerbaijan"]
[BlackTeam "Israel"]
[WhiteTeamCountry "AZE"]
[BlackTeamCountry "ISR"]
[TimeControl "2700+10"]

{[%evp 15,87,27,18,14,15,12,15,20,19,12,15,22,23,24,23,25,39,29,16,23,21,12,33,30,35,35,38,34,43,39,41,34,35,38,36,24,32,0,7,6,5,5,5,2,8,4,6,3,4,0,97,103,148,166,162,168,167,160,342,337,383,383,376,365,362,355,331,328,287,281,1114,355,29996,1218]} 1. e4 {[%emt 0:00:03] Pavlovic,M} e5 {[%emt 0:00:01]} 2. Nf3 {[%emt 0:00:02]} Nc6 {[%emt 0:00:02]} 3. Bb5 {[%emt 0:00:01]} Nf6 {[%emt 0:00:02]} 4. O-O {[%emt 0:00:23]} Nxe4 {[%emt 0:00:03]} 5. Re1 {[%emt 0:10:09]} Nd6 {[%emt 0:00:13]} 6. Nxe5 {[%emt 0:00:03]} Be7 {[%emt 0:00:28]} 7. Bf1 {[%emt 0:00:18]} Nxe5 {[%emt 0:00:05]} 8. Rxe5 {[%emt 0:00:02]} O-O {[%emt 0:00:04]} 9. Nc3 {[%emt 0:00:11] C67: Ruy Lopez: Berlin Defence: 4 0-0 Nxe4.} Ne8 {[%emt 0:01:02]} 10. Nd5 {[%emt 0:01:47]} Bd6 {[%emt 0:00:02]} 11. Re1 {[%emt 0:00:13] The position is equal.} c6 {[%emt 0:00:05]} (11... Qh4 12. g3 Qd8 13. Ne3 $16) 12. Ne3 {[%emt 0:00:04]} Be7 {[%emt 0:00:42]} ({Don't do} 12... Qh4 13. g3 Qf6 14. d4 $16) 13. c4 {[%emt 0:03:27]} d6 {[%emt 0:06:21]} 14. d4 {[%emt 0:00:51]} Nc7 {[%emt 0:00:04] [#]} 15. d5 $5 $146 {[%emt 0:03:25][%mdl 8] New and interesting.} ({Predecessor:} 15. g3 Bf6 16. Bg2 g6 17. Qd3 d5 18. cxd5 cxd5 19. b3 Be6 20. Bb2 Qd7 21. Rac1 {½-½ (73) Wei,Y (2706)-Karjakin,S (2769) Wijk aan Zee 2016 CBM 171 [Pavlovic,M]}) 15... Bf6 {[%emt 0:02:21]} 16. g3 {[%emt 0:04:46]} cxd5 {[%emt 0:01:59]} 17. cxd5 {[%emt 0:03:16]} Re8 {[%emt 0:01:07][%cal Bf8e8,Be8e5,Be5d5][%mdl 32]} 18. Rb1 {[%emt 0:01:10]} b6 {[%emt 0:03:07]} 19. Bd2 {[%emt 0:02:46]} Bb7 {[%emt 0:00:35]} 20. Bg2 {[%emt 0:00:01]} Qd7 {[%emt 0:05:28]} 21. h4 {[%emt 0:00:06]} Bd4 {[%emt 0:02:56]} 22. Qb3 {[%emt 0:02:09]} Re5 {[%emt 0:02:29]} 23. Bc3 {[%emt 0:01:51]} Bxc3 {[%emt 0:01:03]} 24. Qxc3 {[%emt 0:01:29]} Ne8 {[%emt 0:03:55]} (24... Bxd5 $2 25. Nxd5 Rxd5 26. Bxd5 Nxd5 27. Qf3 $18) 25. Qd4 {[%emt 0:01:30]} Nf6 {[%emt 0:00:50]} 26. Nc4 {[%emt 0:02:20]} Rxd5 {[%emt 0:00:28]} 27. Qf4 {[%emt 0:02:21]} Rd3 {[%emt 0:02:26]} 28. Bxb7 {[%emt 0:00:28]} Qxb7 {[%emt 0:00:02]} 29. Nxd6 {[%emt 0:00:14]} Qc7 {[%emt 0:02:08]} 30. Rbd1 {[%emt 0:00:18]} Rxd1 {[%emt 0:00:04]} 31. Rxd1 {[%emt 0:00:01][%cal Be1d1,Bd1c1,Bc1c6][%mdl 32]} Rd8 {[%emt 0:01:14] Hoping for ...Ne8.} 32. Rc1 {[%emt 0:00:29]} Qb8 {[%emt 0:00:02]} (32... Qd7 $11) 33. Rc6 $16 {[%emt 0:01:14][%cal Of4c4]} h6 {[%emt 0:02:34] [#]} 34. Qc4 $1 {[%emt 0:00:25] White is much more active.} Kh7 {[%emt 0:02:02]} 35. Nxf7 {[%emt 0:00:14]} Rd1+ {[%emt 0:00:01]} 36. Kg2 {[%emt 0:00:10] Qc2+ is the strong threat.} Rd2 {[%emt 0:00:02] Against Qc2+} (36... Qe8 $16) 37. Qe6 $1 $18 {[%emt 0:01:03] aiming for Qf5+.} Qb7 {[%emt 0:00:38]} 38. Qf5+ {[%emt 0:00:37]} Kg8 {[%emt 0:00:02] [#]} 39. Nxh6+ $1 {[%emt 0:00:08][%mdl 512]} Kh8 {[%emt 0:00:32] [#]} 40. Nf7+ $1 {[%emt 0:01:05][%mdl 512]} Kg8 {[%emt 0:00:01]} 41. Ne5 {[%emt 0:00:11] Threatens to win with Qe6+.} Re2 {[%emt 0:00:29][%cal Oe2e5]} 42. Qf3 {[%emt 0:00:35]} Qa6 {[%emt 0:01:30] [#]} (42... Rxe5 43. Rxf6 Qxf3+ 44. Rxf3 Rb5) 43. Ng4 $2 {[%emt 0:00:08]} (43. Nd7 $1 {[%mdl 512]} Qb7 (43... Nxd7 44. Qd5+) 44. Nxf6+ gxf6 45. Qxf6) 43... Ne4 {[%emt 0:01:01] [#]} (43... Nxg4 $18 44. Qxg4 Qb7 45. Qc4+ Kh7 46. Qd3+ Kh8 47. Qd8+ Kh7) 44. Qf5 {[%emt 0:00:08] Weighted Error Value: White=0.13 (very precise) /Black=0.33} (44. Nh6+ $142 $1 {[%mdl 512]} gxh6 (44... Kh7 45. Qf5+) 45. Rg6+ Kh8 46. Qf8+ Kh7 47. Rxh6#) 1-0

[Event "FIDE WTC Prel-B 2022"]
[Site "Jerusalem"]
[Date "2022.11.22"]
[Round "5.16"]
[White "Postny, Evgeny"]
[Black "Mamedov, Rauf"]
[Result "1/2-1/2"]
[ECO "E73"]
[WhiteElo "2588"]
[BlackElo "2646"]
[Annotator "TA"]
[PlyCount "107"]
[EventDate "2022.11.20"]
[EventType "team-tourn"]
[EventCountry "ISR"]
[SourceTitle "playchess.com"]
[Source "ChessBase"]
[SourceQuality "1"]
[WhiteTeam "Israel"]
[BlackTeam "Azerbaijan"]
[WhiteTeamCountry "ISR"]
[BlackTeamCountry "AZE"]
[TimeControl "2700+10"]

{[%evp 11,107,35,35,21,35,17,22,31,24,32,45,37,35,16,15,6,16,0,0,0,-11,-6,0,-6,-7,0,0,-33,-20,-24,0,-14,-22,-24,-11,-10,0,-27,-18,-24,-26,-20,-27,-16,-13,-46,-51,-55,-38,-74,-48,-79,-71,-68,-65,-81,-79,-110,-93,-112,-83,-97,-96,-78,-18,-60,-79,-84,-23,-29,-14,-18,-7,-46,-17,-8,0,-30,0,-91,-86,-89,-85,-308,-316,-308,-308,-308,-309,-495,-494,-659,0,0,0,-637,0,0]} 1. d4 {[%emt 0:00:03]} Nf6 {[%emt 0:00:05]} 2. c4 {[%emt 0:00:03]} g6 {[%emt 0:00:02]} 3. Nc3 {[%emt 0:00:06]} Bg7 {[%emt 0:00:01]} 4. e4 {[%emt 0:00:04]} O-O {[%emt 0:00:03]} 5. Be3 {[%emt 0:00:34]} d6 {[%emt 0:00:08]} 6. Be2 {[%emt 0:00:03]} Nc6 {[%emt 0:00:18]} 7. Nf3 {[%emt 0:00:57] E73: King's Indian: Averbakh Variation without 6...c5.} Ng4 $1 {[%emt 0:00:05][%mdl 4] is recently more successful than 7...e5.} 8. Bg5 {[%emt 0:00:05]} h6 {[%emt 0:00:22]} 9. Bh4 {[%emt 0:01:59]} g5 {[%emt 0:00:22]} 10. Bg3 {[%emt 0:00:02]} e5 {[%emt 0:00:01][%cal Re5d4]} 11. d5 {[%emt 0:00:19]} Nd4 {[%emt 0:00:03]} 12. Nxd4 {[%emt 0:07:11]} exd4 {[%emt 0:00:24]} 13. Nb5 {[%emt 0:00:03]} Nf6 {[%emt 0:03:19]} 14. f3 {[%emt 0:00:46]} (14. Nxd4 Nxe4 15. O-O Qf6 $17) 14... Nh5 $1 {[%emt 0:01:54]} 15. Bf2 {[%emt 0:00:09]} Nf4 {[%emt 0:03:18]} 16. O-O {[%emt 0:00:47] [#]} (16. Nxd4 Nxg2+ 17. Kf1 Bh3 $17) 16... c5 $146 {[%emt 0:00:51]} ({Predecessor:} 16... d3 17. Bxd3 Bxb2 18. Rb1 Be5 19. c5 a6 20. Na3 dxc5 21. Bxc5 Bd6 22. Bxd6 Qxd6 {0-1 (56) Muradli,M (2459)-Galperin,P (2469) Corum 2019}) 17. dxc6 $1 {[%emt 0:01:18]} bxc6 {[%emt 0:00:24]} 18. Nxd4 {[%emt 0:00:09]} c5 {[%emt 0:00:02]} 19. Nc2 {[%emt 0:03:01]} (19. Nc6 $2 Qc7 20. Bg3 Qxc6 $19) 19... Bxb2 {[%emt 0:02:52]} 20. Rb1 {[%emt 0:00:03]} Be5 {[%emt 0:01:27]} 21. Qd2 {[%emt 0:01:36] [#]} Bc3 $1 {[%emt 0:02:01]} 22. Qd1 {[%emt 0:03:13]} Be6 {[%emt 0:04:54]} 23. Rb3 {[%emt 0:03:45]} Qf6 {[%emt 0:03:25]} 24. Ne3 {[%emt 0:03:10]} Bd4 {[%emt 0:01:19]} 25. Qd2 {[%emt 0:00:27]} Rab8 {[%emt 0:03:39]} 26. Rfb1 {[%emt 0:02:27]} Rxb3 {[%emt 0:00:17]} 27. Rxb3 {[%emt 0:01:05]} Ng6 {[%emt 0:04:34]} 28. Nd1 {[%emt 0:02:20]} Ne5 {[%emt 0:01:13]} 29. Qc1 {[%emt 0:03:03]} Rc8 {[%emt 0:03:14]} 30. Be3 {[%emt 0:02:40]} Nc6 {[%emt 0:03:10]} 31. Bf1 {[%emt 0:01:22]} Rb8 {[%emt 0:01:20]} 32. Rxb8+ {[%emt 0:00:10]} Nxb8 {[%emt 0:00:01]} 33. Qd2 {[%emt 0:02:36]} Nc6 {[%emt 0:00:50]} 34. Bf2 {[%emt 0:00:50]} Qe5 {[%emt 0:01:25]} 35. h4 {[%emt 0:01:35]} Qf6 {[%emt 0:01:40]} (35... g4 {keeps more tension.} 36. Bxd4 Nxd4 37. Qxh6 gxf3 38. Nc3 fxg2 39. Kxg2 Nc2) 36. hxg5 {[%emt 0:00:10]} hxg5 {[%emt 0:00:01]} ({But not} 36... Qxg5 $6 37. f4 Qf6 38. Bxd4 Qxd4+ 39. Qxd4 cxd4 40. Kf2 $11) 37. Bxd4 {[%emt 0:01:00]} Nxd4 {[%emt 0:00:05]} (37... Qxd4+ $17 38. Qxd4 cxd4) 38. Qe3 {[%emt 0:00:14]} Nc6 {[%emt 0:00:30]} 39. Qd2 {[%emt 0:00:30]} Qe5 {[%emt 0:00:37]} ({Black should play} 39... Qd4+ $17 40. Qxd4 cxd4) 40. Kf2 {[%emt 0:00:19]} Nd4 {[%emt 0:00:17]} 41. Nc3 {[%emt 0:00:23]} a6 {[%emt 0:00:28]} (41... Kh7 {with more complications.} 42. Nd5 Kh6 43. g3 Kg7) 42. Ne2 {[%emt 0:00:26]} (42. Nd5 {feels hotter.} Kf8 43. Nc7 Bc8 44. Nd5) 42... Nc6 {[%emt 0:00:21]} 43. Nc3 {[%emt 0:00:18]} Nd4 {[%emt 0:00:03]} 44. Ne2 {[%emt 0:00:02]} Nc6 {[%emt 0:00:08]} 45. Nc1 {[%emt 0:00:18]} (45. Nc3 $11) 45... g4 {[%emt 0:00:17]} 46. f4 {[%emt 0:00:46]} Qxe4 {[%emt 0:00:05]} 47. Qxd6 $2 {[%emt 0:00:04]} (47. Ne2 $17) 47... g3+ $1 $19 {[%emt 0:00:24]} ({Not} 47... Bxc4 48. Bxc4 Qxc4 49. Ne2 $11) 48. Kxg3 {[%emt 0:00:08]} Qe3+ {[%emt 0:00:00]} 49. Kh2 {[%emt 0:00:14]} Qxc1 {[%emt 0:00:02]} 50. Bd3 {[%emt 0:00:05]} (50. Be2 {was forced.}) 50... Qe3 {[%emt 0:00:16]} 51. f5 {[%emt 0:00:06] [#]} Qh6+ {[%emt 0:00:32]} (51... Ne5 $1 $19 {[%cal Re5g4]} 52. Qd8+ Kg7) 52. Kg1 $11 {[%emt 0:00:07]} Qe3+ $2 {[%emt 0:00:04][%mdl 8192]} (52... Nd4 $11 53. Qb8+ Kg7 54. Qe5+ f6 55. Qg3+ Kf8 56. Qd6+ (56. fxe6 Qc1+ 57. Kh2 Qh6+ 58. Qh3 Qf4+ 59. Kh1 Qc1+ 60. Kh2 Qf4+ 61. Kh1 Qc1+ 62. Kh2 Qf4+ $11) 56... Kg8 57. fxe6 Qe3+ 58. Kh2 Qxd3 59. Qd8+ Kg7 60. Qe7+ Kg6 61. Qf7+ Kg5) 53. Kh2 $19 {[%emt 0:00:01] [#]} Qh6+ $2 {[%emt 0:00:32]} (53... Ne5 $1 $19 {[%cal Re5g4] ( -> ...Ng4+)} 54. Qd8+ Kg7) 54. Kg1 {[%emt 0:00:02] Weighted Error Value: White=0.28 (precise) /Black=0.36} 1/2-1/2

[Event "FIDE WTC Prel-B 2022"]
[Site "Jerusalem"]
[Date "2022.11.22"]
[Round "5.17"]
[White "Vokhidov, Shamsiddin"]
[Black "Wojtaszek, Radoslaw"]
[Result "1-0"]
[ECO "C88"]
[WhiteElo "2568"]
[BlackElo "2686"]
[Annotator "TA"]
[PlyCount "57"]
[EventDate "2022.11.20"]
[EventType "team-tourn"]
[EventCountry "ISR"]
[SourceTitle "playchess.com"]
[Source "ChessBase"]
[SourceQuality "1"]
[WhiteTeam "Uzbekistan"]
[BlackTeam "Poland"]
[WhiteTeamCountry "UZB"]
[BlackTeamCountry "POL"]
[TimeControl "2700+10"]

{[%evp 19,57,18,20,0,0,9,40,35,39,40,35,14,36,33,31,0,56,60,52,30,77,89,125,122,157,145,212,209,218,217,196,193,630,624,970,999,985,464,911,880]} 1. e4 {[%emt 0:00:01]} e5 {[%emt 0:00:02]} 2. Nf3 {[%emt 0:00:04]} Nc6 {[%emt 0:00:03]} 3. Bb5 {[%emt 0:00:20][%cal Bf1b5,Bb5a4,Ba4b3,Bb3c4][%mdl 32]} a6 {[%emt 0:00:02]} 4. Ba4 {[%emt 0:00:02]} Nf6 {[%emt 0:00:03]} 5. O-O {[%emt 0:00:04]} Be7 {[%emt 0:00:03]} 6. Re1 {[%emt 0:00:25]} b5 {[%emt 0:00:04]} 7. Bb3 {[%emt 0:00:02]} O-O {[%emt 0:00:04]} 8. h3 {[%emt 0:00:08]} Bb7 {[%emt 0:00:25]} 9. d3 {[%emt 0:00:03]} d6 {[%emt 0:00:16] 9...d5 gains popularity.} 10. a3 {[%emt 0:00:11]} Nb8 {[%emt 0:00:43]} 11. c4 $5 {[%emt 0:02:51][%mdl 4] An interesting side line. C88: Closed Ruy Lopez: Anti-Marshall Systems.} bxc4 {[%emt 0:04:07]} 12. Bxc4 {[%emt 0:00:02]} Nbd7 {[%emt 0:00:02] [#]} 13. Nc3 $146 {[%emt 0:01:05] White is slightly better.} ({Predecessor:} 13. Be3 d5 14. exd5 Nxd5 15. Bd2 Bd6 16. Nc3 Nxc3 17. Bxc3 Qf6 18. Nd2 Nb6 19. Ba2 {½-½ (37) Gonzalez,B (2531)-Guedes Filho,D (2348) ICCF email 2011}) 13... Nb6 {[%emt 0:00:27]} 14. Ba2 {[%emt 0:00:27]} c5 {[%emt 0:00:02] Against d4} 15. b4 {[%emt 0:10:16]} cxb4 {[%emt 0:09:58]} 16. axb4 {[%emt 0:00:03]} Rc8 {[%emt 0:00:02]} 17. Bb2 {[%emt 0:02:34]} Nbd7 {[%emt 0:11:29]} (17... d5 $1 $11) 18. Bc4 {[%emt 0:01:53]} Ra8 {[%emt 0:00:02]} 19. d4 {[%emt 0:03:53]} Qb6 {[%emt 0:03:27]} (19... d5 $11 20. Nxd5 Nxd5 21. Bxd5 (21. exd5 Nb6 $14) 21... Bxd5 22. exd5 Bxb4) 20. Qb3 $16 {[%emt 0:00:54] White is more active.} exd4 {[%emt 0:00:23] [#]} 21. Nxd4 {[%emt 0:01:21][%mdl 512] Nf5 is the strong threat.} Ne5 {[%emt 0:01:28]} (21... Qxd4 22. Nd5 Qa7 23. Nxe7+ Kh8 24. Nf5 $18) (21... Rae8 22. Na4) 22. Nf5 {[%emt 0:01:09]} Bd8 {[%emt 0:00:01]} (22... Rae8 $16 23. Na4 Qc7) 23. Rad1 $18 {[%emt 0:04:39] The board is on fire.} Nxc4 {[%emt 0:06:53]} 24. Qxc4 {[%emt 0:00:01]} Ne8 {[%emt 0:00:01]} 25. Nd5 {[%emt 0:01:58]} Bxd5 {[%emt 0:00:02]} (25... Qb5 26. Qc3 f6) 26. exd5 {[%emt 0:00:40] White is clearly winning.} ({Weaker is} 26. Qxd5 Rc8 27. Re3 Qb5 $18) ({Not} 26. Rxd5 Rb8 $16) 26... Bf6 {[%emt 0:00:02] [#]} 27. Rxe8 $1 {[%emt 0:00:35][%mdl 512]} Bxb2 {[%emt 0:00:04]} 28. Ne7+ {[%emt 0:00:09]} Kh8 {[%emt 0:00:01]} 29. Nc8 {[%emt 0:00:04] Weighted Error Value: White=0.07 (flawless) /Black=0.54} 1-0

[Event "FIDE WTC Prel-B 2022"]
[Site "Jerusalem"]
[Date "2022.11.22"]
[Round "5.18"]
[White "Piorun, Kacper"]
[Black "Vakhidov, Jakhongir"]
[Result "1/2-1/2"]
[ECO "B27"]
[WhiteElo "2611"]
[BlackElo "2607"]
[Annotator "TA"]
[PlyCount "95"]
[EventDate "2022.11.20"]
[EventType "team-tourn"]
[EventCountry "ISR"]
[SourceTitle "playchess.com"]
[Source "ChessBase"]
[SourceQuality "1"]
[WhiteTeam "Poland"]
[BlackTeam "Uzbekistan"]
[WhiteTeamCountry "POL"]
[BlackTeamCountry "UZB"]
[TimeControl "2700+10"]

{[%evp 9,95,20,22,22,29,29,40,32,41,37,34,37,42,30,29,31,42,31,47,30,41,41,32,47,37,40,33,33,88,77,86,78,70,70,91,106,153,138,143,135,145,139,143,125,195,203,211,207,206,200,184,158,165,124,120,126,126,120,126,60,60,61,60,69,146,151,162,149,146,160,161,154,155,160,152,76,122,122,134,72,72,72,70,69,63,0,8,0]} 1. e4 {[%emt 0:00:03][%cal Be2e4,Be4e5][%mdl 32]} c5 {[%emt 0:00:03]} 2. Nf3 {[%emt 0:00:03]} g6 {[%emt 0:00:26]} 3. c3 {[%emt 0:00:20]} d5 {[%emt 0:00:04]} 4. e5 {[%emt 0:00:02]} a6 {[%emt 0:01:04]} 5. d4 {[%emt 0:01:07]} Nc6 {[%emt 0:00:02]} 6. Be2 {[%emt 0:00:05] B27: Sicilian: 2 Nf3, unusual Black 2nd moves.} f6 {[%emt 0:00:06]} 7. O-O {[%emt 0:00:32]} (7. dxc5 fxe5 8. O-O Nf6 $15) 7... Bg7 {[%emt 0:00:03][%cal Rf6e5]} 8. exf6 {[%emt 0:00:07] White is slightly better.} ({Much worse is} 8. dxc5 fxe5 9. Na3 Nf6 $15) 8... Nxf6 {[%emt 0:00:02] [#]} 9. dxc5 $146 {[%emt 0:00:02]} ({Predecessor:} 9. Ne5 O-O 10. Bf3 Bf5 11. Re1 Kh8 12. Be3 Qb6 13. b3 cxd4 14. cxd4 Nb4 15. Na3 {1-0 (76) Agmanov,Z (2413)-Vakhidov,J (2533) Europe Echecs INT 2021}) 9... O-O {[%emt 0:00:04]} 10. Bg5 {[%emt 0:00:04]} e5 {[%emt 0:01:18]} 11. c4 {[%emt 0:02:21]} d4 {[%emt 0:07:55]} 12. Nfd2 {[%emt 0:00:28]} Bf5 {[%emt 0:04:32] Inhibits Ne4.} 13. Bf3 {[%emt 0:03:27][%cal Od2e4]} Qe7 {[%emt 0:07:05]} 14. Bxf6 {[%emt 0:02:26]} Rxf6 {[%emt 0:05:29]} 15. Ne4 {[%emt 0:00:16]} Bxe4 {[%emt 0:00:02]} 16. Bxe4 {[%emt 0:00:01]} Bh6 {[%emt 0:00:02]} 17. a3 {[%emt 0:05:41]} Qxc5 {[%emt 0:10:32]} 18. Qd3 {[%emt 0:00:51]} b5 {[%emt 0:01:32]} (18... Kh8 $14) 19. Nd2 $1 $16 {[%emt 0:02:37]} Bxd2 {[%emt 0:02:08]} 20. cxb5 {[%emt 0:00:03]} Qxb5 {[%emt 0:00:56]} 21. Qxd2 {[%emt 0:00:02]} Rb8 {[%emt 0:00:14]} 22. b4 {[%emt 0:02:30][%cal Bb2b4,Bb4b5][%mdl 32]} a5 {[%emt 0:01:20]} (22... Nd8 $142) 23. Bd3 {[%emt 0:02:44]} Qb6 {[%emt 0:00:15][%cal Ra5b4]} 24. b5 {[%emt 0:01:19]} Nd8 {[%emt 0:00:01]} 25. Rac1 {[%emt 0:02:14][%cal Ba1c1,Bc1c2,Bc2c7][%mdl 32]} Kg7 {[%emt 0:00:13]} 26. Rc2 {[%emt 0:01:22]} e4 {[%emt 0:00:59]} (26... Nf7 $16 {was called for.} 27. Rfc1 Re8) 27. Bxe4 $18 {[%emt 0:00:15]} Qxb5 {[%emt 0:00:02]} 28. Rc7+ {[%emt 0:00:43]} ({But not} 28. Qxd4 Ne6 29. Qa1 Rd8) 28... Nf7 {[%emt 0:00:29]} 29. Qxd4 {[%emt 0:00:07] Bd5 is the strong threat.} Qb2 {[%emt 0:00:56]} 30. Qxb2 {[%emt 0:06:23]} Rxb2 {[%emt 0:00:01]} 31. Bd5 {[%emt 0:00:01]} Rd2 {[%emt 0:00:10]} 32. Bc4 {[%emt 0:00:21]} Rc2 {[%emt 0:00:11]} 33. f4 {[%emt 0:01:46] Threatens to win with g3.} Kf8 {[%emt 0:00:04]} 34. g4 {[%emt 0:00:25]} (34. g3 $16) 34... Nd6 $14 {[%emt 0:00:46] [#]} 35. Rb1 $1 {[%emt 0:00:02] Strongly threatening Rb8+.} Ne8 {[%emt 0:00:37]} 36. Rb8 {[%emt 0:00:32][%cal Ob8e8] And now Rxe8+! would win.} Re6 {[%emt 0:00:36]} (36... Rb2 $1 $14 37. Rxb2 Nxc7) 37. Bxe6 $16 {[%emt 0:02:25] White threatens Rf7+ and mate.} Rxc7 {[%emt 0:00:01][%mdl 4096] Endgame KRB-KRN} 38. g5 {[%emt 0:00:56]} Ke7 {[%emt 0:00:34]} 39. Bg8 {[%emt 0:00:06] White is more active.} Ng7 {[%emt 0:00:28]} 40. Bxh7 {[%emt 0:03:42]} Ne6 {[%emt 0:00:02]} 41. Bxg6 {[%emt 0:01:51] aiming for Rb5.} Nxf4 {[%emt 0:00:01]} 42. Rb6 {[%emt 0:01:48]} ({Better is} 42. Re8+ $1 Kd6 43. Rg8) 42... Nh3+ {[%emt 0:00:06]} ({Black should try} 42... Rc1+ 43. Kf2 Nh3+ 44. Kg2 Nxg5) 43. Kg2 {[%emt 0:00:00]} Nxg5 {[%emt 0:00:02] [#]} 44. h4 {[%emt 0:00:00]} (44. Rb5 $142 $1 {[%cal Rb5g5]} Ne6 45. Bf5) 44... Ne6 {[%emt 0:00:02] [#]} 45. Bf5 $1 {[%emt 0:00:00]} Ng7 {[%emt 0:00:25]} 46. Be4 {[%emt 0:00:07]} Rc3 {[%emt 0:00:14]} 47. Rg6 {[%emt 0:00:21]} (47. Rb5 $14) 47... Nh5 $11 {[%emt 0:00:03] Hoping for ...Nf4+.} 48. Ra6 {[%emt 0:00:16] Weighted Error Value: White=0.10 (very precise) /Black=0.10 (very precise)} 1/2-1/2

[Event "FIDE WTC Prel-B 2022"]
[Site "Jerusalem"]
[Date "2022.11.22"]
[Round "5.19"]
[White "Nigmatov, Ortik"]
[Black "Bartel, Mateusz"]
[Result "1/2-1/2"]
[ECO "C54"]
[WhiteElo "2433"]
[BlackElo "2627"]
[Annotator "TA"]
[PlyCount "103"]
[EventDate "2022.11.20"]
[EventType "team-tourn"]
[EventCountry "ISR"]
[SourceTitle "playchess.com"]
[Source "ChessBase"]
[SourceQuality "1"]
[WhiteTeam "Uzbekistan"]
[BlackTeam "Poland"]
[WhiteTeamCountry "UZB"]
[BlackTeamCountry "POL"]
[TimeControl "2700+10"]

{[%evp 10,103,12,12,30,10,10,8,9,16,8,16,7,10,7,18,21,10,7,10,29,22,56,4,18,0,50,33,17,29,25,-3,-2,-13,-6,-4,-4,-10,-5,-7,-19,-9,-14,-9,-17,-38,-37,-65,-53,-97,-40,-25,-27,-42,-42,-51,-40,-68,-15,-72,0,-106,-72,-99,0,-8,0,0,0,0,0,0,0,0,0,0,0,-8,0,-33,-51,-49,-22,-12,-11,-18,0,0,12,17,15,0,0,0,6,4]} 1. e4 {[%emt 0:00:04]} e5 {[%emt 0:00:03]} 2. Nf3 {[%emt 0:00:03]} Nc6 {[%emt 0:00:03]} 3. Bc4 {[%emt 0:00:07]} Nf6 {[%emt 0:00:03]} 4. d3 {[%emt 0:00:03]} Bc5 {[%emt 0:00:04]} 5. O-O {[%emt 0:00:10]} d6 {[%emt 0:00:06]} 6. c3 {[%emt 0:00:04]} a5 {[%emt 0:00:04] C54: Giuoco Piano: 4 c3 Nf6, main lines with 5 d4 and 5 d3.} 7. Nbd2 {[%emt 0:01:10]} O-O {[%emt 0:00:11]} 8. h3 {[%emt 0:00:25]} h6 {[%emt 0:01:07]} 9. Re1 {[%emt 0:00:03]} Bd7 {[%emt 0:03:08]} 10. Nf1 {[%emt 0:03:39]} a4 {[%emt 0:00:19]} 11. Bb5 {[%emt 0:01:33]} Ne7 {[%emt 0:05:17]} 12. Bxd7 {[%emt 0:00:08]} Qxd7 {[%emt 0:00:05]} 13. d4 {[%emt 0:00:02]} Bb6 {[%emt 0:00:42]} 14. Ng3 {[%emt 0:00:41]} Ng6 {[%emt 0:01:07]} 15. Be3 {[%emt 0:02:08]} Rfe8 {[%emt 0:02:18]} 16. Qc2 {[%emt 0:05:29]} (16. dxe5 $14 dxe5 17. Bxb6 cxb6 18. Qxd7 Nxd7 19. Rad1) 16... Qc6 {[%emt 0:01:48]} 17. Rad1 {[%emt 0:02:41] [#]} d5 $146 {[%emt 0:05:12]} ({Better is} 17... exd4 $11 18. Bxd4 Bxd4 19. Nxd4 Qc4) ({Predecessor:} 17... exd4 18. Nxd4 Qc4 19. b3 axb3 20. axb3 Qa6 21. c4 Qa2 22. Qxa2 Rxa2 23. Nb5 Bxe3 24. Rxe3 {½-½ (30) Esipenko,A (2611)-Chigaev,M (2640) Yaroslavl 2019}) 18. Nxe5 $14 {[%emt 0:08:26]} Nxe5 {[%emt 0:00:08]} 19. dxe5 {[%emt 0:00:06]} Rxe5 {[%emt 0:00:19]} 20. Bf4 {[%emt 0:01:48]} Re6 {[%emt 0:05:43]} 21. e5 {[%emt 0:01:22]} Nd7 {[%emt 0:00:07]} 22. Qd2 {[%emt 0:12:05]} Qc4 {[%emt 0:02:22]} 23. Nf5 {[%emt 0:01:08]} Rae8 {[%emt 0:00:42][%cal Rd7e5]} 24. Nd4 {[%emt 0:01:13]} Bxd4 {[%emt 0:00:08]} 25. cxd4 {[%emt 0:00:03]} Qxa2 {[%emt 0:00:53]} 26. Ra1 $1 {[%emt 0:00:08][%cal Bd1a1,Ba1a3,Ba3g3][%mdl 32]} Qb3 {[%emt 0:00:18]} 27. Ra3 {[%emt 0:00:02]} Qb5 {[%emt 0:17:23]} 28. Rg3 {[%emt 0:00:30]} Kh8 {[%emt 0:00:00]} 29. Be3 {[%emt 0:02:33]} Rb6 {[%emt 0:00:00]} (29... Nb6 $17 30. Re2 Nc4) 30. Qc2 $15 {[%emt 0:00:14]} Qc6 {[%emt 0:00:00]} 31. Qf5 {[%emt 0:00:23]} Qe6 {[%emt 0:00:00]} 32. Qh5 {[%emt 0:00:00]} Kh7 {[%emt 0:00:00]} (32... Rxb2 33. f4 f5 34. Bc1 $17) 33. Rc1 {[%emt 0:01:19]} Rc6 {[%emt 0:00:00]} ({But not} 33... Rxb2 34. Rxc7 a3 35. Rxd7 $11 (35. Bc1 Rb1 $14)) (33... c5 $15) 34. Ra1 {[%emt 0:00:04]} (34. Rxc6 $11 bxc6 35. Qd1) 34... b5 {[%emt 0:00:00]} ({Black should play} 34... Nb6 $17) 35. Ra3 {[%emt 0:00:01]} (35. f4 $1 $11 {keeps the balance.} g6 36. Qe2) 35... Rf8 {[%emt 0:00:00]} 36. Bd2 {[%emt 0:00:40]} f5 {[%emt 0:00:00]} (36... Rc2 $17 37. Qd1 Rc4) 37. exf6 $1 $11 {[%emt 0:00:18]} Rxf6 {[%emt 0:00:00]} 38. Rae3 $1 {[%emt 0:00:12]} Qf7 {[%emt 0:00:00]} (38... Qf5 $2 {[#]} 39. Re7 $1 (39. Rxg7+ $2 Kxg7 40. Re7+ Kg8 $19) 39... Qxf2+ 40. Kh2 Qxg3+ 41. Kxg3 $18) 39. Qe2 {[%emt 0:00:06] [#] Black must now prevent Re7.} Rce6 {[%emt 0:00:00] Prevents Re7.} 40. Qxb5 {[%emt 0:00:08]} Nb6 {[%emt 0:00:00]} 41. Bc1 {[%emt 0:00:26]} Rc6 {[%emt 0:00:00]} 42. Qd3+ {[%emt 0:00:06]} Kg8 {[%emt 0:00:00]} 43. Re1 {[%emt 0:00:04]} Nc4 {[%emt 0:00:00]} 44. f3 {[%emt 0:00:19]} Rce6 {[%emt 0:00:00]} 45. Rxe6 {[%emt 0:00:06]} Qxe6 {[%emt 0:00:00]} 46. Kh2 {[%emt 0:00:09] The position is equal.} Qd6 {[%emt 0:00:00]} 47. Qc2 {[%emt 0:00:01]} Re6 {[%emt 0:00:00]} 48. Qxa4 {[%emt 0:00:23]} Ne3 {[%emt 0:00:00] Prevents Qd1.} 49. Bxe3 {[%emt 0:00:05]} Rxe3 {[%emt 0:00:00]} 50. Qa8+ {[%emt 0:00:14]} Kh7 {[%emt 0:00:28]} 51. Qc8 {[%emt 0:00:01]} Qf4 {[%emt 0:01:39]} 52. Qd7 {[%emt 0:00:20][%csl LRd5,LRg7] Weighted Error Value: White=0.11 (very precise) /Black=0.14 (very precise)} 1/2-1/2